[Event "1000GM NY Winter IM-C 2024"]
[Site "New York"]
[Date "2024.01.14"]
[Round "5.1"]
[White "Goktepe, Derin"]
[Black "Hajnal, Zoltan"]
[Result "1/2-1/2"]
[ECO "D13"]
[WhiteElo "2187"]
[BlackElo "2383"]
[Annotator "RC"]
[PlyCount "22"]
[EventDate "2024.01.10"]
[EventType "swiss"]
[EventCountry "USA"]
[SourceTitle "playchess.com"]
[Source "ChessBase"]
[SourceQuality "1"]
[TimeControl "5400+30"]

1. d4 {[%emt 0:00:18]} d5 {[%emt 0:03:22]} 2. c4 {[%emt 0:00:15]} c6 {[%emt 0:00:08]} 3. cxd5 {[%emt 0:00:26]} cxd5 {[%emt 0:00:07]} 4. Nc3 {[%emt 0:00:39]} Nf6 {[%emt 0:00:06]} 5. Bf4 {[%emt 0:00:30]} Nc6 {[%emt 0:00:09]} 6. e3 {[%emt 0:00:31]} a6 {[%emt 0:00:05]} 7. Be2 {[%emt 0:01:23]} Bf5 {[%emt 0:00:57]} 8. Nf3 {[%emt 0:03:28]} e6 {[%emt 0:01:22]} 9. Rc1 {[%emt 0:05:19]} Be7 {[%emt 0:01:30]} 10. O-O {[%emt 0:02:24]} O-O {[%emt 0:04:15]} 11. Ne5 {[%emt 0:07:20]} Nxe5 {[%emt 0:01:15]} 1/2-1/2

[Event "1000GM NY Winter IM-C 2024"]
[Site "New York"]
[Date "2024.01.14"]
[Round "5.2"]
[White "Yoo, Eugene"]
[Black "Pressman, Leif"]
[Result "1/2-1/2"]
[ECO "D78"]
[WhiteElo "2168"]
[BlackElo "2258"]
[Annotator "RC"]
[PlyCount "80"]
[EventDate "2024.01.10"]
[EventType "swiss"]
[EventCountry "USA"]
[SourceTitle "playchess.com"]
[Source "ChessBase"]
[SourceQuality "1"]
[TimeControl "5400+30"]

1. c4 {[%emt 0:00:49]} c6 {[%emt 0:00:51]} 2. g3 {[%emt 0:00:36]} Nf6 {[%emt 0:00:34]} 3. Bg2 {[%emt 0:01:16]} d5 {[%emt 0:00:19]} 4. Nf3 {[%emt 0:00:26]} g6 {[%emt 0:07:27]} 5. b3 {[%emt 0:05:36]} Bg7 {[%emt 0:00:36]} 6. O-O {[%emt 0:01:11]} Ne4 {[%emt 0:01:30]} 7. d4 {[%emt 0:00:02]} O-O {[%emt 0:00:48]} 8. Bb2 {[%emt 0:01:32]} a5 {[%emt 0:02:09]} 9. Nbd2 {[%emt 0:13:03]} Bf5 {[%emt 0:03:50]} 10. Nh4 {[%emt 0:03:03]} Nxd2 {[%emt 0:00:55]} 11. Qxd2 {[%emt 0:00:02]} Be6 {[%emt 0:01:23]} 12. c5 {[%emt 0:12:24]} Nd7 {[%emt 0:04:13]} 13. a3 {[%emt 0:01:20]} Qc7 {[%emt 0:14:49]} 14. b4 {[%emt 0:05:59]} Bf6 {[%emt 0:02:08]} 15. Nf3 {[%emt 0:10:34]} Bf5 {[%emt 0:02:11]} 16. Qf4 {[%emt 0:00:56]} Qxf4 {[%emt 0:01:42]} 17. gxf4 {[%emt 0:00:02]} Be4 {[%emt 0:05:26]} 18. Bc3 {[%emt 0:03:43]} Rfd8 {[%emt 0:11:12]} 19. Rfc1 {[%emt 0:09:24]} a4 {[%emt 0:05:59]} 20. Ra2 {[%emt 0:15:09]} Nf8 {[%emt 0:01:04]} 21. Ne1 {[%emt 0:04:40]} Bxg2 {[%emt 0:03:22]} 22. Kxg2 {[%emt 0:00:01]} Ne6 {[%emt 0:00:20]} 23. e3 {[%emt 0:00:00]} Nc7 {[%emt 0:01:08]} 24. Nd3 {[%emt 0:00:02]} Kg7 {[%emt 0:03:33]} 25. Kf3 {[%emt 0:00:31]} h6 {[%emt 0:01:18]} 26. Rg1 {[%emt 0:00:13]} e6 {[%emt 0:00:47]} 27. Rg2 {[%emt 0:01:04]} Kf8 {[%emt 0:00:37]} 28. Ra1 {[%emt 0:02:01]} Ke7 {[%emt 0:00:59]} 29. Bb2 {[%emt 0:00:17]} Rg8 {[%emt 0:01:35]} 30. Rag1 {[%emt 0:00:02]} Rg7 {[%emt 0:01:29]} 31. Nc1 {[%emt 0:00:19]} Rag8 {[%emt 0:01:55]} 32. Ne2 {[%emt 0:00:01]} Nb5 {[%emt 0:00:23]} 33. Ng3 {[%emt 0:01:58]} h5 {[%emt 0:04:14]} 34. Nf1 {[%emt 0:01:54]} Kd7 {[%emt 0:01:36]} 35. Nd2 {[%emt 0:00:11]} Kc7 {[%emt 0:01:32]} 36. Rc1 {[%emt 0:01:25]} Kb8 {[%emt 0:01:21]} 37. Nb1 {[%emt 0:00:24]} Ka7 {[%emt 0:00:34]} 38. Rcg1 {[%emt 0:01:00]} Ka6 {[%emt 0:00:33]} 39. Ke2 {[%emt 0:00:32]} Ka7 {[%emt 0:03:24]} 40. Nd2 {[%emt 0:00:05]} Kb8 {[%emt 0:10:44]} 1/2-1/2

[Event "1000GM NY Winter IM-C 2024"]
[Site "New York"]
[Date "2024.01.14"]
[Round "5.3"]
[White "Chabris, Christopher"]
[Black "Martin Del Campo Cardenas, Roberto Abel"]
[Result "1/2-1/2"]
[ECO "B52"]
[WhiteElo "2078"]
[BlackElo "2205"]
[Annotator "TA"]
[PlyCount "75"]
[EventDate "2024.01.10"]
[EventType "swiss"]
[EventCountry "USA"]
[SourceTitle "playchess.com"]
[Source "ChessBase"]
[SourceQuality "1"]
[TimeControl "5400+30"]

{[%evp 23,75,0,0,0,0,0,0,0,0,0,36,0,43,-11,20,-9,0,0,6,6,7,-12,-17,-16,106,78,193,205,210,190,201,159,159,152,179,169,169,164,148,126,126,106,352,313,1864,0,0,0,0,0,0,0,0,0]} 1. e4 {[%emt 0:00:03]} c5 {[%emt 0:01:11]} 2. Nf3 {[%emt 0:01:15]} d6 {[%emt 0:00:20]} 3. Bb5+ {[%emt 0:00:12]} Bd7 {[%emt 0:00:07]} 4. Bxd7+ {[%emt 0:00:05]} Qxd7 {[%emt 0:00:04]} 5. O-O {[%emt 0:00:08]} Nc6 {[%emt 0:00:03]} 6. Qe2 {[%emt 0:00:11]} Nf6 {[%emt 0:02:02]} 7. c3 {[%emt 0:01:08]} e6 {[%emt 0:00:33]} 8. d4 {[%emt 0:00:18]} cxd4 {[%emt 0:00:50]} 9. cxd4 {[%emt 0:00:36]} d5 {[%emt 0:00:05]} 10. e5 {[%emt 0:00:16]} Ne4 {[%emt 0:00:20]} 11. Nbd2 {[%emt 0:00:27]} Nxd2 {[%emt 0:00:16]} 12. Bxd2 {[%emt 0:00:07]} Be7 {[%emt 0:00:12]} 13. g3 {[%emt 0:01:50]} O-O {[%emt 0:00:27]} 14. Kg2 {[%emt 0:01:15]} Rfc8 {[%emt 0:00:45]} 15. h4 {[%emt 0:02:36]} Bd8 {[%emt 0:04:15]} 16. h5 {[%emt 0:04:47]} Ne7 {[%emt 0:03:35]} 17. Qd3 {[%emt 0:22:18]} Qa4 {[%emt 0:13:13]} 18. Bc3 {[%emt 0:07:21]} (18. b3 $14 Qa6 19. Qxa6 bxa6 20. Bb4) 18... Nc6 {[%emt 0:07:25]} 19. Nh2 {[%emt 0:10:38][%cal Oh5h6]} h6 {[%emt 0:18:08]} 20. f4 {[%emt 0:03:25]} Ne7 {[%emt 0:07:41]} 21. g4 {[%emt 0:04:03]} Ba5 {[%emt 0:00:58]} 22. Rf3 {[%emt 0:07:25]} Bxc3 {[%emt 0:08:39]} 23. bxc3 {[%emt 0:00:09]} Rc7 {[%emt 0:00:17]} (23... b5 $1 $11 {bleibt in der Remisbreite.}) 24. f5 $16 {[%emt 0:05:41]} Rac8 {[%emt 0:00:34]} (24... Rf8 $16) 25. Qd2 $18 {[%emt 0:02:29]} exf5 {[%emt 0:12:10]} 26. gxf5 {[%emt 0:00:27]} Nxf5 {[%emt 0:00:06]} 27. Rxf5 {[%emt 0:02:48]} Rxc3 {[%emt 0:00:04] [#]} 28. Rf2 $1 {[%emt 0:01:03] Qf4 wäre nun fies.} Rc2 {[%emt 0:00:54]} 29. Qf4 {[%emt 0:03:16]} Rxf2+ {[%emt 0:00:29]} 30. Kxf2 {[%emt 0:00:43]} (30. Qxf2 $2 {geht unter.} Rc2 31. Nf3 Rxf2+ $19) 30... Rc2+ {[%emt 0:00:11]} 31. Kg1 {[%emt 0:05:49] Rf1 ist eine echte Drohung.} Rxa2 {[%emt 0:00:14]} 32. Rf1 {[%emt 0:01:39]} Qd7 {[%emt 0:00:36]} (32... Kh8 $16 {war einen Versuch wert.}) 33. Ng4 {[%emt 0:01:14][%cal Og4f6] [#] Zielt auf Nf6+! ab.} b5 $2 {[%emt 0:01:10]} (33... Rc2 34. Ne3 Rc6) 34. Rf3 $2 {[%emt 0:02:45]} ({Der einzige Zug:} 34. Nf6+ $18 gxf6 35. Qg3+ Kf8 36. exf6) 34... Ra1+ $11 {[%emt 0:01:49] Die Stellung ist ausgeglichen.} 35. Kg2 {[%emt 0:00:26] Schwarz muss nun Rf2 beachten.} Ra2+ {[%emt 0:00:03]} 36. Kg1 {[%emt 0:02:44]} Ra1+ {[%emt 0:00:03]} 37. Kg2 {[%emt 0:01:06] Und jetzt Rf2 wäre schön.} Ra2+ {[%emt 0:00:03]} 38. Kg1 {[%emt 0:00:37] Gewichteter Fehlerwert: Weiß=0.23 (präzise) /Schwarz=0.34.  Verlustzug:     	---       	Schwarz=1     Gewinn verpasst:   	Weiß=1     	---        Fehler:       	Weiß=1     	Schwarz=3     Ungenau:       	Weiß=2     	Schwarz=3     OK:         	Weiß=8     	Schwarz=12    Bester:       	Weiß=3     	Schwarz=3     Stark:        	Weiß=1     	---} 1/2-1/2

[Event "1000GM NY Winter IM-C 2024"]
[Site "New York"]
[Date "2024.01.14"]
[Round "5.4"]
[White "Rohde, Michael"]
[Black "Ho, Carter"]
[Result "1-0"]
[ECO "D38"]
[WhiteElo "2333"]
[BlackElo "2180"]
[Annotator "RC"]
[PlyCount "49"]
[EventDate "2024.01.10"]
[EventType "swiss"]
[EventCountry "USA"]
[SourceTitle "playchess.com"]
[Source "ChessBase"]
[SourceQuality "1"]
[TimeControl "5400+30"]

1. Nf3 {[%emt 0:00:10]} d5 {[%emt 0:00:27]} 2. d4 {[%emt 0:00:18]} Nf6 {[%emt 0:00:07]} 3. c4 {[%emt 0:00:03]} e6 {[%emt 0:00:06]} 4. Nc3 {[%emt 0:00:12]} Bb4 {[%emt 0:00:19]} 5. Qa4+ {[%emt 0:00:33]} Nc6 {[%emt 0:00:11]} 6. e3 {[%emt 0:00:16]} O-O {[%emt 0:02:41]} 7. Qc2 {[%emt 0:02:43]} dxc4 {[%emt 0:02:13]} 8. Bxc4 {[%emt 0:00:25]} Bd6 {[%emt 0:01:33]} 9. O-O {[%emt 0:01:02]} e5 {[%emt 0:01:31]} 10. d5 {[%emt 0:07:16]} Nb4 {[%emt 0:13:14]} 11. Qb1 {[%emt 0:00:43]} c6 {[%emt 0:00:26]} 12. dxc6 {[%emt 0:02:18]} Nxc6 {[%emt 0:00:15]} 13. Rd1 {[%emt 0:00:26]} e4 {[%emt 0:06:39]} 14. Ng5 {[%emt 0:06:48]} Ng4 {[%emt 0:19:18]} 15. f4 {[%emt 0:04:57]} Bf5 {[%emt 0:06:49]} 16. Ncxe4 {[%emt 0:06:06]} Qb6 {[%emt 0:20:03]} 17. Rxd6 {[%emt 0:02:38]} Nxe3 {[%emt 0:06:50]} 18. Bxe3 {[%emt 0:00:11]} Qxe3+ {[%emt 0:00:05]} 19. Kh1 {[%emt 0:00:31]} h6 {[%emt 0:04:35]} 20. Nf6+ {[%emt 0:01:26]} gxf6 {[%emt 0:00:11]} 21. Qxf5 {[%emt 0:00:09]} hxg5 {[%emt 0:00:10]} 22. Qg6+ {[%emt 0:00:28]} Kh8 {[%emt 0:00:03]} 23. Qxf6+ {[%emt 0:00:14]} Kg8 {[%emt 0:00:05]} 24. Qxg5+ {[%emt 0:00:13]} Kh8 {[%emt 0:00:06]} 25. Rh6# {[%emt 0:00:56]} 1-0

[Event "1000GM NY Winter IM-C 2024"]
[Site "New York"]
[Date "2024.01.14"]
[Round "5.5"]
[White "Almeida Saenz, Alfonso"]
[Black "Tanenbaum, Zachary"]
[Result "0-1"]
[ECO "D02"]
[WhiteElo "2222"]
[BlackElo "2272"]
[Annotator "RC"]
[PlyCount "58"]
[EventDate "2024.01.10"]
[EventType "swiss"]
[EventCountry "USA"]
[SourceTitle "playchess.com"]
[Source "ChessBase"]
[SourceQuality "1"]
[TimeControl "5400+30"]

1. d4 {[%emt 0:00:01]} d5 {[%emt 0:23:57]} 2. Nf3 {[%emt 0:00:17]} e6 {[%emt 0:00:05]} 3. Bf4 {[%emt 0:01:34]} Bd6 {[%emt 0:00:09]} 4. Bg3 {[%emt 0:00:08]} Nf6 {[%emt 0:00:26]} 5. e3 {[%emt 0:00:54]} Ne4 {[%emt 0:02:26]} 6. Nbd2 {[%emt 0:00:08]} Nxg3 {[%emt 0:01:32]} 7. hxg3 {[%emt 0:00:07]} Nd7 {[%emt 0:00:45]} 8. Bd3 {[%emt 0:00:11]} f5 {[%emt 0:03:44]} 9. Qe2 {[%emt 0:03:34]} Nf6 {[%emt 0:08:22]} 10. O-O-O {[%emt 0:00:31]} Bd7 {[%emt 0:09:37]} 11. Rh4 {[%emt 0:02:00]} Qe7 {[%emt 0:01:56]} 12. Rdh1 {[%emt 0:01:22]} O-O-O {[%emt 0:01:56]} 13. Kb1 {[%emt 0:00:06]} Kb8 {[%emt 0:02:16]} 14. Ng5 {[%emt 0:00:35]} Ne4 {[%emt 0:07:28]} 15. Nxh7 {[%emt 0:02:19]} Rhg8 {[%emt 0:06:20]} 16. Nf3 {[%emt 0:03:33]} Be8 {[%emt 0:08:38]} 17. Ne5 {[%emt 0:01:10]} Bxe5 {[%emt 0:01:42]} 18. dxe5 {[%emt 0:00:02]} c5 {[%emt 0:01:22]} 19. Bxe4 {[%emt 0:00:12]} dxe4 {[%emt 0:17:19]} 20. f4 {[%emt 0:00:06]} exf3 {[%emt 0:00:00]} 21. gxf3 {[%emt 0:00:01]} Bc6 {[%emt 0:00:00]} 22. R1h2 {[%emt 0:02:42]} Rd5 {[%emt 0:00:00]} 23. b3 {[%emt 0:02:05]} Rgd8 {[%emt 0:00:00]} 24. Kb2 {[%emt 0:01:37]} Qc7 {[%emt 0:00:00]} 25. f4 {[%emt 0:00:18]} Qa5 {[%emt 0:00:00]} 26. Ng5 {[%emt 0:03:13]} Bb5 {[%emt 0:00:00]} 27. Qf3 {[%emt 0:01:15]} c4 {[%emt 0:00:00]} 28. e4 {[%emt 0:00:16]} cxb3 {[%emt 0:00:00]} 29. axb3 {[%emt 0:01:25]} Rd1 {[%emt 0:00:00]} 0-1

[Event "1000GM NY Winter IM-C 2024"]
[Site "New York"]
[Date "2024.01.14"]
[Round "5.6"]
[White "Kovalchuk, Igor"]
[Black "Pagan, Jonathan"]
[Result "1/2-1/2"]
[ECO "B15"]
[WhiteElo "2030"]
[BlackElo "2018"]
[Annotator "TA"]
[PlyCount "108"]
[EventDate "2024.01.10"]
[EventType "swiss"]
[EventCountry "USA"]
[SourceTitle "playchess.com"]
[Source "ChessBase"]
[SourceQuality "1"]
[TimeControl "5400+30"]

{[%evp 15,108,16,20,10,47,18,39,37,45,35,36,16,29,26,9,-16,-10,-77,-75,-63,-18,-26,-26,-56,-16,-32,-40,-30,0,0,0,0,0,0,0,0,3,0,0,-26,-26,-35,-12,-64,0,0,0,-57,-52,-33,-27,-27,0,0,0,0,0,0,0,0,0,0,0,0,0,0,0,0,0,-24,8,8,8,13,0,8,9,0,51,44,37,7,8,0,0,0,0,0,0,0,0,0,0,0,0]} 1. e4 {[%emt 0:01:02]} c6 {[%emt 0:00:09]} 2. Nc3 {[%emt 0:01:50]} d5 {[%emt 0:00:05]} 3. d4 {[%emt 0:01:33]} dxe4 {[%emt 0:00:08]} 4. Nxe4 {[%emt 0:00:06]} Nf6 {[%emt 0:00:10]} 5. Nxf6+ {[%emt 0:02:15]} exf6 {[%emt 0:02:49]} 6. c3 {[%emt 0:00:29]} Bd6 {[%emt 0:00:06]} 7. Bd3 {[%emt 0:01:24]} O-O {[%emt 0:00:09]} 8. Ne2 {[%emt 0:00:39]} Re8 {[%emt 0:00:05]} 9. Qc2 {[%emt 0:01:29]} h5 {[%emt 0:00:14]} 10. h3 {[%emt 0:00:48]} h4 {[%emt 0:02:14]} 11. Be3 {[%emt 0:04:09] Weiß steht etwas besser.} Nd7 {[%emt 0:12:13]} 12. c4 {[%emt 0:05:02]} Nf8 {[%emt 0:02:36]} 13. O-O-O {[%emt 0:03:10]} Be6 {[%emt 0:03:12]} 14. Kb1 {[%emt 0:00:41]} Rc8 {[%emt 0:01:31]} 15. Nc1 {[%emt 0:03:58]} b5 {[%emt 0:01:00]} 16. Qe2 {[%emt 0:02:37]} (16. Nb3 $11) 16... bxc4 $17 {[%emt 0:01:54]} 17. Bxc4 {[%emt 0:00:20]} Bd5 {[%emt 0:10:17]} 18. Bxd5 {[%emt 0:01:16]} cxd5 {[%emt 0:00:04]} 19. Qb5 {[%emt 0:06:23]} Be7 {[%emt 0:06:06]} 20. Rd3 {[%emt 0:03:33]} Rb8 {[%emt 0:01:28]} 21. Qa4 {[%emt 0:01:45][%cal Od3b3]} Qc7 {[%emt 0:09:12]} 22. Rb3 {[%emt 0:02:30]} Ne6 {[%emt 0:01:45]} 23. Rxb8 {[%emt 0:00:59]} Rxb8 {[%emt 0:00:12]} 24. Nd3 {[%emt 0:02:40]} Qb7 {[%emt 0:00:40]} 25. Rc1 {[%emt 0:00:57]} f5 {[%emt 0:00:22][%cal Of5f4]} 26. Rc3 {[%emt 0:06:44]} f4 {[%emt 0:04:03]} 27. Rb3 {[%emt 0:00:54]} Qc7 {[%emt 0:00:05]} 28. Rxb8+ {[%emt 0:00:49]} Qxb8 {[%emt 0:00:03]} 29. Bd2 {[%emt 0:01:15]} Bf6 {[%emt 0:01:40]} ({Günstiger ist} 29... f3 $1 $15 30. gxf3 Qc8) 30. Qd7 $11 {[%emt 0:03:17]} f3 {[%emt 0:09:26]} 31. Qxd5 {[%emt 0:01:41]} (31. gxf3 $11 Nxd4 32. f4) 31... fxg2 $15 {[%emt 0:00:06]} (31... Bxd4 $6 32. Qxf3 Qb5 33. Bc1 $14) 32. Qxg2 {[%emt 0:00:09][%cal Od3e5]} Qb5 {[%emt 0:00:51]} 33. Qa8+ {[%emt 0:01:25]} Kh7 {[%emt 0:00:06]} 34. Qe4+ {[%emt 0:00:07]} g6 {[%emt 0:00:17][%cal Ob5a4]} 35. Bc3 {[%emt 0:04:24]} Ng5 {[%emt 0:00:26]} 36. Qxh4+ {[%emt 0:07:21]} Kg7 {[%emt 0:00:11]} 37. Kc2 {[%emt 0:00:44]} Qa4+ {[%emt 0:03:09]} 38. b3 {[%emt 0:06:01]} Qxa2+ {[%emt 0:00:10]} 39. Nb2 $1 {[%emt 0:00:26]} Qa6 {[%emt 0:01:59]} 40. Qg4 {[%emt 0:00:38] Verhindert Qe2+} Qf1 {[%emt 0:02:25][%csl LRf2,LRh3]} 41. Nd3 {[%emt 0:04:01]} Nxh3 {[%emt 0:04:15]} 42. Qf3 {[%emt 0:01:25]} Ng1 {[%emt 0:05:14]} 43. Qe3 {[%emt 0:02:03]} Qe2+ {[%emt 0:01:06]} ({Natürlich nicht} 43... Ne2 44. Bb2 Ng1 45. Nc5 $14 (45. d5 Qe2+ 46. Qxe2 Nxe2 $16)) 44. Bd2 {[%emt 0:02:37]} Qg4 {[%emt 0:03:31]} 45. Ne5 {[%emt 0:02:41] Lässt Nf3 nicht zu} Qf5+ {[%emt 0:02:15]} 46. Kb2 {[%emt 0:01:55]} Qh5 {[%emt 0:08:35]} (46... Nh3 $11 47. f4 Bd8) 47. Nd7 $14 {[%emt 0:02:52]} Nf3 {[%emt 0:01:14]} 48. Bc3 {[%emt 0:03:28]} Qd5 {[%emt 0:00:12][%csl LRd4,LRd7][%cal Rf3d4] [#] Droht stark ...Nxd4! Die Stellung ist ausgeglichen.} 49. Qe8 {[%emt 0:06:28] jetzt Qf8+ und aus.} (49. Nxf6 {vereinfacht} Kxf6 50. Qd3 Ng5 51. Qc4) 49... Bxd4 {[%emt 0:05:00]} 50. Qf8+ Kh7 51. Nf6+ Bxf6 52. Bxf6 {[%csl Gf6][%cal Rf8g7] [#]} Qd2+ {[%emt 0:01:30]} 53. Kb1 {[%emt 0:02:00][%csl Gf6][%cal Rf8g7]} (53. Ka3 $5 Qa5+ $8 54. Kb2 Qd2+ 55. Ka3 Qa5+ 56. Kb2 Qd2+ $11) 53... Qd1+ ({Und nicht} 53... Qxf2 54. Qh8#) 54. Kb2 {[%emt 0:00:30][%csl Gf6][%cal Rf8g7]} Qd2+ {[%emt 0:01:00] Gewichteter Fehlerwert: Weiß=0.08 (makellos) /Schwarz=0.09 (makellos) .  Fehler:       	Weiß=2     	Schwarz=2     Ungenau:       	Weiß=4     	Schwarz=6     OK:         	Weiß=21    	Schwarz=19    Bester:       	Weiß=2     	Schwarz=3     Stark:        	Weiß=1     	---} 1/2-1/2

[Event "1000GM NY Winter IM-C 2024"]
[Site "New York"]
[Date "2024.01.14"]
[Round "5.7"]
[White "Mede, Istvan"]
[Black "Gaw, Chloe"]
[Result "1/2-1/2"]
[ECO "B67"]
[WhiteElo "2187"]
[BlackElo "1928"]
[Annotator "TA"]
[PlyCount "69"]
[EventDate "2024.01.10"]
[EventType "swiss"]
[EventCountry "USA"]
[SourceTitle "playchess.com"]
[Source "ChessBase"]
[SourceQuality "1"]
[TimeControl "5400+30"]

{[%evp 20,69,33,19,23,9,50,14,25,23,36,19,29,19,30,45,43,49,95,22,26,22,88,79,81,77,77,91,79,83,124,25,32,21,11,32,23,11,14,8,16,12,22,18,18,18,22,0,26,0,0,0]} 1. e4 {[%emt 0:03:39]} c5 {[%emt 0:00:05]} 2. Nf3 {[%emt 0:00:04]} d6 {[%emt 0:00:03]} 3. d4 {[%emt 0:00:05]} cxd4 {[%emt 0:00:03]} 4. Nxd4 {[%emt 0:00:03]} Nf6 {[%emt 0:00:05]} 5. Nc3 {[%emt 0:00:03]} Nc6 {[%emt 0:00:04]} 6. Bg5 {[%emt 0:01:02]} e6 {[%emt 0:00:02]} 7. Qd2 {[%emt 0:00:10]} a6 {[%emt 0:00:04]} 8. O-O-O {[%emt 0:00:10]} Bd7 {[%emt 0:00:08]} 9. f3 {[%emt 0:00:23]} Nxd4 {[%emt 0:00:44]} 10. Qxd4 {[%emt 0:00:06]} Be7 {[%emt 0:00:45]} 11. h4 {[%emt 0:02:11]} Qc7 {[%emt 0:01:09]} 12. Kb1 {[%emt 0:03:45]} Rc8 {[%emt 0:02:12]} 13. Qd2 {[%emt 0:04:46]} b5 {[%emt 0:04:20]} 14. Bd3 {[%emt 0:02:11]} Bc6 {[%emt 0:12:39]} 15. Ne2 {[%emt 0:00:35]} h6 {[%emt 0:17:51]} 16. Be3 {[%emt 0:00:28]} Nd7 {[%emt 0:01:46]} 17. Nd4 {[%emt 0:01:12]} Ne5 {[%emt 0:03:21]} 18. g4 {[%emt 0:02:22]} d5 {[%emt 0:09:36]} (18... h5 $14) 19. Qg2 {[%emt 0:35:21]} (19. Bf4 $16 {Und jetzt Nxc6 wäre schön.} dxe4 20. Bxb5 (20. fxe4 Bd6 $11) 20... axb5 (20... Bxb5 21. Nxb5 axb5 22. Bxe5 $14) 21. Bxe5 (21. Nxc6 $2 Qxc6 22. Bxe5 f6 $19) 21... Qxe5 22. Nxc6) 19... dxe4 {[%emt 0:16:17]} 20. fxe4 {[%emt 0:00:57]} Ng6 {[%emt 0:05:01] Gegen Bf4 gerichtet.} (20... Nxd3 $11 21. cxd3 Bd7) 21. Nxc6 $16 {[%emt 0:04:00]} Qxc6 {[%emt 0:00:57]} 22. h5 {[%emt 0:01:41]} Ne5 {[%emt 0:03:27]} 23. g5 {[%emt 0:00:12]} hxg5 {[%emt 0:06:51]} 24. Bxg5 {[%emt 0:00:54]} Qc5 {[%emt 0:07:55] [#]} 25. Bxe7 {[%emt 0:08:29]} (25. Be3 $1 $16 {[%cal Re3c5]} Qxe3 26. Qxg7) 25... Kxe7 $11 {[%emt 0:00:04]} 26. Qg5+ {[%emt 0:12:05]} (26. Qxg7 $2 {ist das falsche Schlagen.} Rcg8 $19) 26... Kf8 {[%emt 0:00:40] ...Nxd3 ist eine echte Drohung.} 27. h6 {[%emt 0:00:32]} Rxh6 {[%emt 0:01:35]} 28. Rxh6 {[%emt 0:00:12]} gxh6 {[%emt 0:00:04]} 29. Qxh6+ {[%emt 0:00:12]} Ke7 {[%emt 0:02:09]} 30. Qg5+ {[%emt 0:02:36]} Ke8 {[%emt 0:01:09] [#] Zielt auf ...Nxd3 ab.} 31. Qd2 {[%emt 0:03:46]} Nxd3 {[%emt 0:01:44]} 32. Qxd3 {[%emt 0:01:31]} Qc7 {[%emt 0:00:25] Verhindert Qd7+} 33. Rh1 {[%emt 0:00:56]} (33. Qe2 $5) 33... Ke7 {[%emt 0:00:32]} 34. a3 {[%emt 0:00:40]} Qc4 {[%emt 0:01:07]} 35. Rf1 {[%emt 0:01:16] Gewichteter Fehlerwert: Weiß=0.17 (sehr präzise) /Schwarz=0.14 (sehr präzise) .  Fehler:       	Weiß=2     	Schwarz=2     Ungenau:       	Weiß=2     	Schwarz=3     OK:         	Weiß=8     	Schwarz=8     Bester:       	Weiß=1     	Schwarz=1} 1/2-1/2

[Event "1000GM NY Winter IM-C 2024"]
[Site "New York"]
[Date "2024.01.14"]
[Round "5.8"]
[White "Mou, Iris"]
[Black "Bonin, Jay"]
[Result "1-0"]
[ECO "B31"]
[WhiteElo "2128"]
[BlackElo "2166"]
[Annotator "TA"]
[PlyCount "39"]
[EventDate "2024.01.10"]
[EventType "swiss"]
[EventCountry "USA"]
[SourceTitle "playchess.com"]
[Source "ChessBase"]
[SourceQuality "1"]
[TimeControl "5400+30"]

{[%evp 10,39,45,35,40,37,39,37,52,50,50,52,65,77,95,106,162,126,120,131,136,135,154,141,147,131,265,277,879,879,936,929]} 1. e4 {[%emt 0:00:01]} c5 {[%emt 0:00:58]} 2. Nf3 {[%emt 0:00:11]} Nc6 {[%emt 0:00:05]} 3. Bb5 {[%emt 0:00:09]} g6 {[%emt 0:00:07]} 4. Bxc6 {[%emt 0:00:10]} dxc6 {[%emt 0:00:04]} 5. d3 {[%emt 0:00:14]} Bg4 {[%emt 0:00:09]} 6. Nbd2 {[%emt 0:00:10]} Bg7 {[%emt 0:00:06]} 7. h3 {[%emt 0:00:13] OK} Bxf3 {[%emt 0:00:07]} 8. Nxf3 {[%emt 0:00:09]} e5 {[%emt 0:01:14] White is slightly better.} 9. Be3 {[%emt 0:01:40]} b6 {[%emt 0:00:07]} 10. Qd2 {[%emt 0:01:35]} Qe7 {[%emt 0:01:33]} 11. Qc3 {[%emt 0:10:24][%cal Ob2b4] OK} a5 {[%emt 0:03:39]} 12. a3 {[%emt 0:02:41] White is more active.} f5 {[%emt 0:11:09] Mistake (0.6)} (12... Qc7 $16 {was called for.}) 13. Bg5 {[%emt 0:17:37]} Qe6 {[%emt 0:05:42]} 14. exf5 {[%emt 1:02:16] OK} gxf5 {[%emt 0:09:07]} 15. O-O {[%emt 0:00:00] Hoping for Rae1. OK} Ne7 {[%emt 0:01:02] OK} 16. Bxe7 {[%emt 0:00:00] OK} Kxe7 {[%emt 0:00:38]} 17. Rfe1 {[%emt 0:00:00] OK} Kd6 {[%emt 0:00:16] [#] Mistake (1.3)} (17... Rhe8 $16 {was necessary.}) 18. d4 $1 $18 {[%emt 0:00:00] Strong} cxd4 $2 {[%emt 0:05:25] Mistake (6.0)} (18... Kc7 19. dxc5 (19. Nxe5 Rhe8 $18) 19... bxc5 20. Nxe5 Rhe8) 19. Nxd4 {[%emt 0:00:00]} Qd7 {[%emt 0:00:36] [#]} 20. Nb5+ $1 {[%emt 0:00:00][%mdl 512] Weighted Error Value: White=0.03 (flawless) /Black=0.30.  Mistake:       	---       	Black=3      OK:         	White=6     	Black=1      Strong:       	White=1     	---} 1-0

[Event "1000GM NY Winter IM-C 2024"]
[Site "New York"]
[Date "2024.01.14"]
[Round "5.9"]
[White "Venkatesh, Narayan"]
[Black "Yudasin, Leonid"]
[Result "1/2-1/2"]
[ECO "E42"]
[WhiteElo "1965"]
[BlackElo "2353"]
[Annotator "RC"]
[PlyCount "51"]
[EventDate "2024.01.10"]
[EventType "swiss"]
[EventCountry "USA"]
[SourceTitle "playchess.com"]
[Source "ChessBase"]
[SourceQuality "1"]
[TimeControl "5400+30"]

1. d4 {[%emt 0:01:10]} Nf6 {[%emt 0:00:20]} 2. c4 {[%emt 0:00:05]} e6 {[%emt 0:00:10]} 3. Nc3 {[%emt 0:00:07]} Bb4 {[%emt 0:03:44]} 4. e3 {[%emt 0:00:15]} c5 {[%emt 0:00:11]} 5. Nge2 {[%emt 0:00:09]} cxd4 {[%emt 0:00:16]} 6. exd4 {[%emt 0:00:10]} d5 {[%emt 0:00:03]} 7. c5 {[%emt 0:00:09]} Ne4 {[%emt 0:00:44]} 8. a3 {[%emt 0:00:21]} Nxc3 {[%emt 0:00:12]} 9. Nxc3 {[%emt 0:00:32]} Bxc3+ {[%emt 0:00:09]} 10. bxc3 {[%emt 0:00:08]} O-O {[%emt 0:01:28]} 11. Bd3 {[%emt 0:00:11]} b6 {[%emt 0:00:01]} 12. Qh5 {[%emt 0:00:15]} g6 {[%emt 0:00:04]} 13. Qh6 {[%emt 0:00:29]} bxc5 {[%emt 0:00:23]} 14. h4 {[%emt 0:00:54]} Ba6 {[%emt 0:08:45]} 15. Bxa6 {[%emt 0:02:33]} Nxa6 {[%emt 0:00:23]} 16. h5 {[%emt 0:01:21]} Qe7 {[%emt 0:06:59]} 17. Kf1 {[%emt 0:19:28]} gxh5 {[%emt 0:03:14]} 18. Qxh5 {[%emt 0:10:15]} f6 {[%emt 0:01:52]} 19. Bh6 {[%emt 0:03:05]} Rf7 {[%emt 0:00:06]} 20. Rh3 {[%emt 0:08:13]} Kh8 {[%emt 0:08:56]} 21. Rg3 {[%emt 0:01:29]} cxd4 {[%emt 0:00:50]} 22. cxd4 {[%emt 0:00:30]} Nc7 {[%emt 0:00:05]} 23. Re1 {[%emt 0:14:01]} Qd7 {[%emt 0:06:53]} 24. Qg4 {[%emt 0:05:17]} Re7 {[%emt 0:56:42]} 25. Rge3 Rf7 26. Rg3 {[%emt 0:32:23]} 1/2-1/2